bitfinex/quotes_SOLUSD_20250315
["timestamp","ask_amount","ask_price","bid_price","bid_amount"]
[1742039802539,20.81386376,133.74,133.72,6.463]
[1742039802746,13.33666376,133.73,133.72,6.463]
[1742039803576,13.6209869,133.73,133.72,0.063]
[1742039804646,21.0986869,133.73,133.72,0.063]
[1742039805356,13.33666376,133.73,133.72,0.063]
[1742039806069,13.36666376,133.73,133.72,0.063]
[1742039806266,0.03,133.73,133.72,0.063]
[1742039810340,13.36666376,133.73,133.72,0.063]
[1742039810880,0.03,133.73,133.72,0.063]
[1742039812747,13.36666376,133.73,133.72,0.063]
[1742039812943,13.36666376,133.73,133.72,6.463]
[1742039814970,20.84436376,133.73,133.72,6.463]
[1742039816767,21.1286869,133.73,133.72,6.463]
[1742039816948,39.77833576,133.73,133.72,0.063]
[1742039819870,21.1286869,133.73,133.72,0.063]
[1742039820055,0.03,133.73,133.72,0.063]
[1742039822862,13.36666376,133.73,133.72,0.063]
[1742039824576,0.03,133.73,133.72,0.063]
[1742039828584,0.03,133.73,133.72,1.6514]
[1742039829885,0.03,133.73,133.72,9.1297]
[1742039831091,0.03,133.73,133.72,22.46636376]
[1742039832785,0.03,133.73,133.72,9.1297]
[1742039833175,0.03,133.73,133.72,0.063]
[1742039833403,0.03,133.73,133.72,6.483]
[1742039835385,0.03,133.73,133.72,13.9613]
[1742039835769,0.03,133.73,133.72,6.483]
[1742039837485,0.03,133.73,133.72,13.9613]
[1742039839889,0.03,133.73,133.72,6.483]
[1742039841192,0.03,133.73,133.72,13.9613]
[1742039842668,0.03,133.73,133.72,6.483]
[1742039846091,0.03,133.73,133.72,13.9613]
[1742039849977,0.03,133.73,133.72,6.483]
[1742039850399,0.03,133.73,133.72,13.9613]
[1742039852279,0.03,133.73,133.72,6.483]
[1742039852480,0.03,133.73,133.72,6.443]
[1742039854003,0.03,133.73,133.72,0.063]
[1742039854204,0.03,133.73,133.72,6.443]
[1742039857314,0.03,133.73,133.72,27.25796376]
[1742039857908,0.03,133.73,133.72,34.91136376]
[1742039858510,0.03,133.73,133.72,346.91136376]
[1742039858912,0.03,133.73,133.72,365.70317419]
[1742039860738,0.03,133.73,133.72,365.56101262]
[1742039861928,0.03,133.73,133.72,53.56101262]
[1742039863737,0.03,133.73,133.72,46.08271262]
[1742039864145,0.03,133.73,133.72,14.0964]
[1742039864432,0.03,133.73,133.72,6.443]
[1742039870219,0.03,133.73,133.72,19.77966376]
[1742039870620,0.03,133.73,133.72,6.443]
[1742039870846,0.03,133.73,133.72,19.77966376]
[1742039871348,0.03,133.73,133.72,6.443]
[1742039874147,0.03,133.73,133.72,0.063]
[1742039874332,0.03,133.73,133.72,6.443]
[1742039880543,0.03,133.73,133.72,13.9213]
[1742039880745,0.03,133.73,133.72,6.443]
[1742039909774,13.36666376,133.73,133.72,6.423]
[1742039910191,13.6509869,133.73,133.72,0.063]
[1742039911885,21.1286869,133.73,133.72,0.063]
[1742039925502,13.36666376,133.73,133.72,0.063]
[1742039925703,0.03,133.73,133.72,0.063]
[1742039927812,13.36666376,133.73,133.72,0.063]
[1742039928106,0.03,133.73,133.72,13.39966376]
[1742039929309,0.03,133.73,133.72,20.87796376]
[1742039929704,0.03,133.73,133.72,22.41406376]
[1742039931914,0.03,133.73,133.72,1.5991]
[1742039933208,0.03,133.73,133.72,0.063]
[1742039934297,0.03,133.73,133.72,6.423]
[1742039940607,0.03,133.73,133.72,20.063]
[1742039940842,0.03,133.73,133.72,26.423]
[1742039942129,0.03,133.73,133.72,6.423]
[1742039950042,13.36666376,133.73,133.72,6.423]
[1742039951444,20.84436376,133.73,133.72,6.423]
[1742039956360,21.1286869,133.73,133.72,0.063]
[1742039956562,21.1286869,133.73,133.72,6.423]
[1742039962550,21.1286869,133.73,133.72,0.063]
[1742039967253,39.77833576,133.73,133.72,0.063]
[1742039981769,39.63617419,133.73,133.72,0.063]
[1742039982575,39.77833576,133.73,133.72,0.063]
[1742039985162,39.77833576,133.73,133.72,0.0001]
[1742039985360,39.63617419,133.73,133.72,0.0001]
[1742039985556,39.77833576,133.73,133.72,0.0001]
[1742039995783,39.77833576,133.73,133.69,0.063]
[1742039995784,38.933972,133.7,133.69,0.063]
[1742039995983,105.6172908,133.7,133.69,0.063]
[1742039996486,33.6209869,133.7,133.69,0.063]
[1742039997580,41.1003869,133.7,133.69,0.063]
[1742039997783,40.81606376,133.7,133.69,0.063]
[1742040002278,41.1003869,133.7,133.69,0.063]
[1742040002585,113.0966908,133.7,133.69,0.063]
[1742040003091,113.0966908,133.7,133.66,0.063]
[1742040003092,20.28432314,133.67,133.66,0.063]
[1742040003283,52.27063576,133.67,133.66,0.063]
[1742040003593,33.6209869,133.67,133.66,0.063]
[1742040003989,41.1020869,133.67,133.66,0.063]
[1742040004795,59.75173576,133.67,133.66,0.063]
[1742040006075,0.28432314,133.66,133.64,0.063]
[1742040006283,31.98631262,133.65,133.64,0.063]
[1742040008178,39.46851262,133.65,133.64,0.063]
[1742040010901,39.75283576,133.65,133.64,0.0001]
[1742040011102,40.25283576,133.65,133.64,0.0001]
[1742040011297,38.64964886,133.63,133.62,0.063]
[1742040011502,105.33296766,133.63,133.62,0.063]
[1742040012383,112.81626766,133.63,133.62,0.063]
[1742040012882,59.46961262,133.63,133.62,0.063]
[1742040013303,112.81626766,133.63,133.62,0.063]
[1742040013604,112.81626766,133.63,133.62,0.0001]
[1742040014108,113.31626766,133.63,133.62,0.0001]
[1742040014295,0.78432314,133.62,133.61,0.0001]
[1742040014489,14.1209869,133.62,133.61,0.0001]
[1742040014697,13.6209869,133.62,133.61,0.0001]
[1742040016512,21.1048869,133.62,133.61,0.0001]
[1742040017212,39.75453576,133.62,133.61,0.0001]
[1742040017508,21.1048869,133.62,133.61,0.0001]
[1742040017990,13.33666376,133.63,133.61,0.0001]
[1742040018193,13.33666376,133.64,133.62,6.38]
[1742040018511,13.33666376,133.65,133.62,12.9432]
[1742040019091,13.33666376,133.64,133.62,12.9432]
[1742040020314,13.33666376,133.65,133.62,20.427]
[1742040020613,13.33666376,133.65,133.62,12.9432]
[1742040022297,13.33666376,133.64,133.62,12.9432]
[1742040023917,13.33666376,133.65,133.62,12.9432]
[1742040025716,13.33666376,133.67,133.63,1.5544]
[1742040026606,13.33666376,133.67,133.63,9.0372]
[1742040027297,13.33666376,133.68,133.63,22.37386376]
[1742040028910,13.33666376,133.68,133.64,14.098]
[1742040029728,13.33666376,133.68,133.64,6.6156]
[1742040031329,13.36666376,133.68,133.64,6.6156]
[1742040032019,13.36666376,133.68,133.64,14.0983]
[1742040032615,13.25440092,133.68,133.64,14.0983]
[1742040033525,13.25440092,133.68,133.64,6.6156]
[1742040034032,13.25440092,133.68,133.64,14.0983]
[1742040034204,0.03,133.68,133.64,27.43496376]
[1742040035114,20.84716376,133.68,133.64,6.6156]
[1742040035719,13.33666376,133.67,133.64,6.6156]
[1742040036229,13.33666376,133.65,133.64,6.6156]
[1742040036525,13.33666376,133.65,133.62,197.98]
[1742040036831,13.33666376,133.63,133.62,204.36]
[1742040037521,13.33666376,133.64,133.62,204.36]
[1742040038726,13.33666376,133.63,133.62,204.36]
[1742040039517,13.33666376,133.64,133.62,204.36]
[1742040039711,13.33666376,133.64,133.62,6.38]
[1742040043128,13.33666376,133.64,133.62,6.443]
[1742040044622,13.33666376,133.65,133.62,6.443]
[1742040048120,13.33666376,133.64,133.62,6.443]
[1742040050943,7.4822,133.65,133.62,6.443]
[1742040051242,20.81886376,133.65,133.62,6.443]
[1742040064444,13.33666376,133.65,133.62,6.443]
[1742040064863,0.03,133.68,133.64,13.33666376]
[1742040065160,0.03,133.68,133.65,13.33666376]
[1742040065337,0.03,133.68,133.64,13.33666376]
[1742040067351,0.03,133.68,133.65,7.4822]
[1742040067662,0.03,133.68,133.67,13.33666376]
[1742040067865,0.03,133.68,133.67,6.38]
[1742040068846,0.03,133.68,133.67,27.19776376]
[1742040070561,0.03,133.68,133.67,45.84741262]
[1742040070766,0.03,133.7,133.69,13.33666376]
[1742040070943,0.03,133.7,133.69,20.81656376]
[1742040072964,0.03,133.7,133.68,218.75706376]
[1742040073169,0.03,133.7,133.68,197.94]
[1742040073662,0.03,133.7,133.69,6.4]
[1742040073874,13.36666376,133.7,133.69,6.4]
[1742040075164,20.84606376,133.7,133.69,6.4]
[1742040080075,0.03,133.7,133.69,13.8799]
[1742040080271,0.03,133.7,133.69,27.21656376]
[1742040080451,0.03,133.7,133.69,6.4]
[1742040085483,0.03,133.7,133.69,6.54]
[1742040088078,0.03,133.7,133.69,14.0199]
[1742040088773,0.03,133.7,133.69,27.35656376]
[1742040094783,0.03,133.7,133.69,14.0199]
[1742040095686,0.03,133.7,133.69,6.54]
[1742040096782,0.03,133.7,133.69,14.0199]
[1742040098789,0.03,133.7,133.69,6.54]
[1742040099492,0.03,133.7,133.68,0.063]
[1742040099790,13.6209869,133.69,133.68,0.063]
[1742040099992,32.27063576,133.69,133.68,0.063]
[1742040101068,39.75053576,133.69,133.68,0.063]
[1742040104200,20.0,133.66,133.62,6.563]
[1742040104518,13.33666376,133.63,133.62,6.563]
[1742040104899,13.33666376,133.63,133.62,0.063]
[1742040105695,20.81996376,133.63,133.62,0.063]
[1742040105895,21.1042869,133.63,133.62,0.063]
[1742040106620,13.33666376,133.63,133.62,0.063]
[1742040106914,1.81282314,133.65,133.62,0.063]
[1742040106915,13.33666376,133.64,133.62,0.063]
[1742040107815,13.33666376,133.63,133.62,0.063]
[1742040115126,20.81996376,133.63,133.62,0.063]
[1742040116520,74.45094194,133.63,133.62,0.063]
[1742040118123,93.1005908,133.63,133.62,0.063]
[1742040123436,13.6209869,133.63,133.62,0.063]
[1742040124439,13.33666376,133.63,133.62,0.063]
[1742040124821,13.33666376,133.64,133.62,6.523]
[1742040125525,13.33666376,133.63,133.62,6.523]
[1742040126321,9.0392,133.68,133.62,14.0069]
[1742040126521,13.33666376,133.65,133.62,6.523]
[1742040126750,13.33666376,133.64,133.62,6.523]
[1742040126921,13.33666376,133.63,133.62,6.523]
[1742040127741,13.6209869,133.63,133.62,6.523]
[1742040127941,13.6209869,133.63,133.62,0.063]
[1742040129242,21.1042869,133.63,133.62,0.063]
[1742040129448,13.6209869,133.63,133.62,0.063]
[1742040129744,13.33666376,133.63,133.62,0.063]
[1742040130844,13.33666376,133.65,133.62,0.063]
[1742040131337,13.33666376,133.64,133.62,0.063]
[1742040132530,13.33666376,133.65,133.62,0.063]
[1742040132943,13.33666376,133.64,133.62,0.063]
[1742040133126,13.33666376,133.63,133.62,0.063]
[1742040133956,7.62326157,133.67,133.62,0.063]
[1742040134254,13.33666376,133.63,133.62,0.063]
[1742040137356,13.33666376,133.64,133.62,0.063]
[1742040138140,13.33666376,133.63,133.62,0.063]
[1742040140938,21.1042869,133.63,133.62,0.063]
[1742040141943,93.1005908,133.63,133.62,0.063]
[1742040144662,39.75393576,133.63,133.62,0.063]
[1742040144968,21.1042869,133.63,133.62,0.063]
[1742040146259,13.6209869,133.63,133.62,0.063]
[1742040146471,21.1042869,133.63,133.62,0.063]
[1742040151068,93.1005908,133.63,133.62,0.063]
[1742040153854,39.75393576,133.63,133.62,0.063]
[1742040163653,93.1005908,133.63,133.62,0.063]
[1742040164287,39.75393576,133.63,133.62,0.063]
[1742040167868,93.1005908,133.63,133.62,0.063]
[1742040169584,39.75393576,133.63,133.62,0.063]
[1742040170171,93.1005908,133.63,133.62,0.063]
[1742040170481,93.1005908,133.63,133.61,0.0001]
[1742040170482,18.933972,133.62,133.61,0.0001]
[1742040170674,32.27063576,133.62,133.61,0.0001]
[1742040172283,39.75453576,133.62,133.61,0.0001]
[1742040184311,39.78453576,133.62,133.61,0.0001]
[1742040185004,13.36666376,133.62,133.61,0.0001]
[1742040185190,0.03,133.62,133.61,6.4601]
[1742040190606,12.79985271,133.63,133.61,6.4601]
[1742040191314,13.33666376,133.62,133.61,6.4601]
[1742040193902,21.1048869,133.62,133.61,6.4601]
[1742040194503,21.1048869,133.62,133.61,0.0001]
[1742040196200,21.1348869,133.62,133.61,0.0001]
[1742040198005,13.6509869,133.62,133.61,0.0001]
[1742040198614,0.03,133.62,133.61,0.0001]
[1742040203631,0.03,133.62,133.61,1.527]
[1742040205031,0.03,133.62,133.61,22.34806376]
[1742040205224,0.03,133.62,133.61,9.0114]
[1742040208237,0.03,133.62,133.61,1.527]
[1742040214730,0.03,133.62,133.61,6.4201]
[1742040214731,13.36666376,133.62,133.61,6.4201]
[1742040215336,20.85056376,133.62,133.61,6.4201]
[1742040215845,20.85056376,133.62,133.61,0.0001]
[1742040216142,20.85056376,133.62,133.61,6.4201]
[1742040216345,21.1348869,133.62,133.61,0.0001]
[1742040238669,39.78453576,133.62,133.61,0.0001]
[1742040240356,0.28432314,133.61,133.6,0.0001]
[1742040240551,21.1053869,133.61,133.6,0.0001]
[1742040240865,38.933972,133.59,133.58,0.063]
[1742040241172,18.933972,133.58,133.55,0.063]
[1742040241373,13.33666376,133.57,133.55,0.063]
[1742040242172,20.82336376,133.57,133.55,0.063]
[1742040244272,39.75733576,133.57,133.55,0.063]
[1742040244475,93.1039908,133.57,133.55,0.063]
[1742040246377,99.19067621,133.57,133.55,0.063]
[1742040246561,85.6172908,133.56,133.55,0.063]
[1742040248565,93.1044908,133.56,133.55,0.063]
[1742040251577,93.1044908,133.56,133.54,0.063]
[1742040251777,32.27063576,133.55,133.54,0.063]
[1742040253085,38.64964886,133.52,133.51,0.063]
[1742040253478,52.27063576,133.52,133.51,0.063]
[1742040253676,59.76013576,133.52,133.51,0.063]
[1742040263180,38.64964886,133.49,133.48,0.063]
[1742040263365,51.98631262,133.49,133.48,0.063]
[1742040265190,59.76173576,133.49,133.48,0.063]
[1742040265489,113.1083908,133.49,133.48,0.063]
[1742040269595,63.56919226,133.49,133.48,0.063]
[1742040270288,116.9158473,133.49,133.48,0.063]
[1742040271793,59.76173576,133.49,133.48,0.063]
[1742040272188,18.64964886,133.48,133.47,0.063]
[1742040272878,31.98631262,133.48,133.47,0.063]
[1742040273994,39.47801262,133.48,133.47,0.063]
[1742040274694,39.76233576,133.48,133.47,0.063]
[1742040279803,43.6076337,133.48,133.47,0.063]
[1742040280904,43.6376337,133.48,133.47,0.063]
[1742040282511,0.14216157,133.43,133.42,8.3056]
[1742040282706,13.6209869,133.43,133.42,8.3056]
[1742040283380,13.33666376,133.43,133.42,8.3056]
[1742040283587,33.33666376,133.45,133.42,8.3056]
[1742040283787,20.0,133.44,133.42,8.3056]
[1742040284007,20.0,133.44,133.43,6.36]
[1742040284206,13.33666376,133.45,133.43,6.36]
[1742040284387,13.6209869,133.46,133.43,6.36]
[1742040284982,13.33666376,133.46,133.43,13.8544]
[1742040285188,13.33666376,133.47,133.43,13.8544]
[1742040286994,13.33666376,133.46,133.43,13.8544]
[1742040287910,13.33666376,133.46,133.43,6.36]
[1742040289417,13.33666376,133.46,133.43,13.8544]
[1742040289912,13.33666376,133.46,133.43,6.36]
[1742040290513,20.82966376,133.46,133.43,6.36]
[1742040290710,13.33666376,133.45,133.43,6.36]
[1742040294495,13.33666376,133.44,133.43,6.36]
[1742040295806,20.83016376,133.45,133.43,6.36]
[1742040297309,13.33666376,133.45,133.43,6.36]
[1742040297609,0.28432314,133.45,133.43,6.36]
[1742040297804,13.33666376,133.46,133.43,6.36]
[1742040298198,13.33666376,133.47,133.43,6.36]
[1742040298414,13.33666376,133.47,133.43,13.8545]
[1742040299825,13.33666376,133.46,133.43,13.8545]
[1742040300395,20.0,133.45,133.43,13.8545]
[1742040301516,13.33666376,133.47,133.43,13.8545]
[1742040305103,0.03,133.48,133.45,13.33666376]
[1742040305306,0.03,133.48,133.45,14.99276376]
[1742040306721,0.03,133.48,133.46,7.4928]
[1742040308828,0.03,133.48,133.46,20.82946376]
[1742040309022,0.03,133.48,133.47,19.81426376]
[1742040309408,0.03,133.48,133.47,21.47036376]
[1742040309727,0.03,133.48,133.47,28.96266376]
[1742040310320,0.03,133.54,133.5,13.33666376]
[1742040310616,13.6509869,133.54,133.51,6.36]
[1742040310806,13.33666376,133.53,133.52,6.36]
[1742040312006,13.6509869,133.54,133.52,6.36]
[1742040313811,21.1392869,133.54,133.52,6.36]
[1742040319427,0.03,133.54,133.52,6.36]
[1742040329742,13.36666376,133.54,133.52,6.36]
[1742040330046,0.03,133.54,133.52,6.36]
[1742040330548,21.1393869,133.54,133.52,6.36]
[1742040334263,13.6209869,133.53,133.52,6.36]
[1742040335559,0.03,133.54,133.52,6.36]
[1742040336463,7.5185,133.54,133.52,6.36]
[1742040337559,20.85516376,133.54,133.52,6.36]
[1742040338374,7.5185,133.54,133.52,6.36]
[1742040340268,0.03,133.54,133.52,6.36]
[1742040351782,20.03,133.54,133.52,13.8494]
[1742040352871,0.03,133.54,133.52,13.8494]
[1742040356285,0.03,133.54,133.52,27.18606376]
[1742040360290,0.03,133.54,133.52,6.36]
[1742040361277,0.03,133.54,133.52,27.18596376]
[1742040362561,0.03,133.54,133.52,13.8493]
[1742040363260,0.03,133.54,133.52,6.36]
[1742040371687,13.33666376,133.53,133.51,6.36]
[1742040372373,13.33666376,133.53,133.48,13.33666376]
[1742040372574,13.33666376,133.53,133.49,6.36]
[1742040373387,13.33666376,133.53,133.47,213.8228]
[1742040373388,13.33666376,133.51,133.5,6.36]
[1742040375267,20.96872533,133.52,133.5,6.36]
[1742040376486,20.96872533,133.52,133.47,29.01986376]
[1742040376669,13.33666376,133.51,133.48,6.36]
[1742040377075,13.47882533,133.52,133.48,6.36]
[1742040377471,13.33666376,133.52,133.48,13.8516]
[1742040377677,0.17216157,133.54,133.49,13.33666376]
[1742040378393,13.50882533,133.54,133.49,13.33666376]
[1742040379395,13.50882533,133.54,133.5,7.4906]
[1742040382791,20.99712533,133.54,133.49,7.4909]
[1742040383108,13.33666376,133.53,133.49,7.4909]
[1742040384090,13.33666376,133.53,133.48,27.18816376]
[1742040384413,13.33666376,133.53,133.48,13.8515]
[1742040384586,13.33666376,133.52,133.48,13.8515]
[1742040385201,13.33666376,133.53,133.48,13.8515]
[1742040385601,13.33666376,133.53,133.48,27.18816376]
[1742040385902,13.33666376,133.53,133.48,20.82816376]
[1742040386085,13.33666376,133.53,133.49,6.36]
[1742040387799,13.33666376,133.53,133.49,13.851]
[1742040388298,20.99712533,133.54,133.49,13.851]
[1742040389084,20.99712533,133.54,133.5,13.33666376]
[1742040389085,0.03,133.54,133.5,13.33666376]
[1742040389286,0.03,133.54,133.51,13.33666376]
[1742040390896,0.03,133.54,133.52,13.33666376]
[1742040391093,0.03,133.54,133.53,7.4889]
[1742040391485,0.03,133.54,133.53,20.82556376]
[1742040393297,0.03,133.54,133.53,7.4889]
[1742040393908,0.03,133.54,133.52,20.82606376]
[1742040396505,0.03,133.54,133.52,7.4894]
[1742040397605,0.03,133.54,133.52,20.82606376]
[1742040401402,0.03,133.54,133.52,7.4894]
[1742040402511,0.03,133.54,133.52,20.82606376]
[1742040404218,0.03,133.54,133.52,7.4894]
[1742040409009,0.03,133.54,133.52,7.4894]
[1742040415711,0.03,133.54,133.52,20.82606376]
[1742040416033,0.03,133.54,133.52,7.4894]
[1742040416326,0.03,133.54,133.51,94.3992]
[1742040416529,0.03,133.54,133.51,107.73586376]
[1742040425137,13.33666376,133.53,133.52,6.36]
[1742040426316,13.36666376,133.54,133.52,6.36]
[1742040427227,13.36666376,133.54,133.53,6.36]
[1742040427634,0.03,133.54,133.53,6.36]
[1742040428013,13.36666376,133.54,133.53,6.36]
[1742040429640,21.1392869,133.54,133.53,6.36]
[1742040430345,0.28432314,133.53,133.48,7.4915]
[1742040430532,13.33666376,133.49,133.47,0.063]
[1742040430834,13.33666376,133.49,133.48,6.36]
[1742040431040,0.14216157,133.52,133.48,6.36]
[1742040431041,13.33666376,133.5,133.48,6.36]
[1742040431429,13.33666376,133.51,133.48,6.36]
[1742040432241,7.63166157,133.52,133.48,6.36]
[1742040432242,13.33666376,133.5,133.48,6.36]
[1742040435340,13.6209869,133.49,133.48,6.36]
[1742040435550,18.933972,133.48,133.47,0.063]
[1742040435753,32.27063576,133.48,133.47,0.063]
[1742040437345,39.76233576,133.48,133.47,0.063]
[1742040437942,32.27063576,133.48,133.47,0.063]
[1742040446359,18.933972,133.48,133.47,0.063]
[1742040453463,0.28432314,133.49,133.47,0.063]
[1742040454876,0.03,133.48,133.47,0.063]
[1742040455360,0.03,133.48,133.47,7.5553]
[1742040456169,0.03,133.48,133.47,22.54996376]
[1742040461972,0.03,133.48,133.47,9.2133]
[1742040465965,0.03,133.48,133.47,22.54996376]
[1742040469879,0.03,133.48,133.47,20.89196376]
[1742040470076,0.03,133.48,133.47,6.423]
[1742040470456,0.03,133.48,133.47,13.9153]
[1742040472288,0.03,133.48,133.47,27.25196376]
[1742040476795,0.03,133.48,133.47,13.9153]
[1742040477596,0.03,133.48,133.47,6.423]
[1742040477887,0.03,133.48,133.47,13.9153]
[1742040478592,0.03,133.48,133.47,7.5553]
[1742040478794,0.03,133.48,133.47,13.9153]
[1742040481096,0.03,133.48,133.47,27.25196376]
[1742040482290,0.17216157,133.54,133.47,45.98276376]
[1742040482473,0.31432314,133.54,133.5,13.33666376]
[1742040483376,0.31432314,133.54,133.51,7.49]
[1742040483597,0.31432314,133.54,133.52,6.36]
[1742040483795,0.03,133.54,133.52,19.69666376]
[1742040485293,0.03,133.54,133.52,6.36]
[1742040486003,0.03,133.54,133.52,13.8494]
[1742040488401,0.03,133.54,133.52,27.18606376]
[1742040488703,0.03,133.54,133.53,13.33666376]
[1742040489479,0.28432314,133.6,133.53,14.97696376]
[1742040489787,0.28432314,133.6,133.58,7.4861]
[1742040489989,20.28432314,133.6,133.59,6.36]
[1742040491898,20.31432314,133.6,133.59,6.36]
[1742040492500,0.03,133.6,133.59,13.8455]
[1742040492802,0.03,133.6,133.59,27.18216376]
[1742040493003,0.03,133.6,133.59,13.8455]
[1742040493791,0.03,133.6,133.59,6.36]
[1742040499310,0.03,133.6,133.59,13.8455]
[1742040500003,0.03,133.6,133.59,6.36]
[1742040502614,0.03,133.6,133.56,7.487]
[1742040502787,13.33666376,133.59,133.57,6.36]
[1742040503398,13.33666376,133.58,133.56,6.36]
[1742040503801,13.6209869,133.57,133.56,6.36]
[1742040503986,13.47882533,133.57,133.53,198.203]
[1742040504294,13.33666376,133.55,133.54,6.36]
[1742040505108,20.82426376,133.56,133.54,6.36]
[1742040505406,13.47882533,133.57,133.54,6.36]
[1742040505607,0.28432314,133.57,133.54,6.36]
[1742040506008,13.6209869,133.57,133.54,6.36]
[1742040506193,0.28432314,133.57,133.54,6.36]
[1742040507002,13.33666376,133.59,133.54,27.18496376]
[1742040507208,0.03,133.6,133.54,27.18496376]
[1742040507209,13.36666376,133.6,133.54,27.18496376]
[1742040507711,13.33666376,133.59,133.54,27.18496376]
[1742040510090,20.85186376,133.6,133.54,27.18496376]
[1742040510295,0.31432314,133.6,133.55,13.33666376]
[1742040510490,0.31432314,133.6,133.56,13.33666376]
[1742040510795,13.6509869,133.6,133.55,13.33666376]
[1742040511392,13.6509869,133.6,133.56,7.4872]
[1742040513935,13.6509869,133.6,133.58,13.33666376]
[1742040513936,0.03,133.6,133.58,13.33666376]
[1742040514218,0.03,133.6,133.59,6.36]
[1742040517422,0.03,133.6,133.59,13.8455]
[1742040522919,0.03,133.6,133.59,27.18216376]
[1742040523338,0.03,133.6,133.59,13.8455]
[1742040526526,0.03,133.6,133.59,27.18216376]
[1742040527327,0.03,133.6,133.59,107.88216376]
[1742040527522,0.03,133.6,133.59,116.02066376]
[1742040530732,0.03,133.6,133.59,109.66066376]
[1742040530929,0.03,133.6,133.59,116.02066376]
[1742040536226,0.0001,133.6,133.59,116.02066376]
[1742040536423,0.03,133.62,133.59,134.73456376]
[1742040536644,0.03,133.62,133.61,13.33666376]
[1742040536849,0.03,133.62,133.61,94.03666376]
[1742040537248,0.03,133.68,133.61,94.03666376]
[1742040537534,0.03,133.68,133.65,13.33666376]
[1742040538926,0.03,133.68,133.66,6.36]
[1742040539426,0.03,133.68,133.66,13.8415]
[1742040540136,13.36666376,133.68,133.66,6.36]
[1742040540345,13.33666376,133.67,133.66,6.36]
[1742040541337,0.28432314,133.67,133.66,6.36]
[1742040541647,13.6209869,133.67,133.66,6.36]
[1742040542235,21.1020869,133.67,133.66,6.36]
[1742040542445,13.6209869,133.67,133.66,6.36]
[1742040542826,21.1020869,133.67,133.66,6.36]
[1742040544042,13.6209869,133.67,133.66,6.36]
[1742040544737,21.1020869,133.67,133.66,6.36]
[1742040546438,20.95992533,133.67,133.63,6.36]
[1742040546643,13.33666376,133.66,133.63,6.36]
[1742040548256,20.95992533,133.67,133.63,6.36]
[1742040549028,13.33666376,133.67,133.63,13.8433]
[1742040549233,0.03,133.68,133.65,13.33666376]
[1742040549730,0.03,133.68,133.64,14.94996376]
[1742040551157,0.03,133.68,133.65,7.4822]
[1742040555074,0.03,133.68,133.65,7.4822]
[1742040555248,13.36666376,133.68,133.64,7.4826]
[1742040555455,13.36666376,133.68,133.65,6.36]
[1742040556050,13.36666376,133.68,133.66,6.36]
[1742040556257,0.03,133.68,133.66,6.36]
[1742040558355,0.03,133.68,133.66,13.8415]
[1742040561677,0.03,133.68,133.66,27.17816376]
[1742040562276,0.03,133.68,133.67,13.33666376]
[1742040562860,0.03,133.68,133.67,20.81776376]
[1742040563878,0.03,133.68,133.67,7.4811]
[1742040565889,0.03,133.68,133.67,20.81776376]
[1742040567489,0.03,133.68,133.67,7.4811]
[1742040568789,0.03,133.68,133.67,20.81776376]
[1742040571296,0.03,133.7,133.67,121.3421358]
[1742040571494,0.03,133.7,133.69,13.33666376]
[1742040571996,0.03,133.72,133.7,1.52]
[1742040572183,0.03,133.72,133.71,19.69666376]